[Event "*** Titled Tuesday Blitz"]
[Site "Chess.com"]
[Date "2021.02.16"]
[Round "9"]
[White "garfield_pg"]
[Black "MPGM"]
[Result "1/2-1/2"]
[WhiteElo "2363"]
[BlackElo "2607"]
[TimeControl "180+1"]
[EndTime "11:49:36 PST"]
[Termination "Game drawn - timeout vs insufficient material"]

1. e4 {[%clk 0:03:00.9]} 1... e5 {[%clk 0:03:00]} 2. d4 {[%clk 0:03:01.4]} 2...
exd4 {[%clk 0:02:58.9]} 3. Nf3 {[%clk 0:03:02.3]} 3... Nc6 {[%clk 0:02:57.4]} 4.
Nxd4 {[%clk 0:03:02]} 4... d6 {[%clk 0:02:57.6]} 5. Bb5 {[%clk 0:03:01.1]} 5...
Bd7 {[%clk 0:02:56.9]} 6. Nc3 {[%clk 0:03:01.7]} 6... Nxd4 {[%clk 0:02:54.9]} 7.
Qxd4 {[%clk 0:03:02.6]} 7... Bxb5 {[%clk 0:02:51.2]} 8. Nxb5 {[%clk 0:03:03.5]}
8... a6 {[%clk 0:02:51.8]} 9. Nc3 {[%clk 0:03:02.9]} 9... Nf6 {[%clk 0:02:51.5]}
10. Bg5 {[%clk 0:03:02.5]} 10... Be7 {[%clk 0:02:51.9]} 11. O-O-O {[%clk
0:03:03.1]} 11... O-O {[%clk 0:02:50.6]} 12. e5 {[%clk 0:03:03.1]} 12... Ne8
{[%clk 0:02:31.9]} 13. Bxe7 {[%clk 0:02:54.5]} 13... Qxe7 {[%clk 0:02:32.8]} 14.
exd6 {[%clk 0:02:51.9]} 14... Nxd6 {[%clk 0:02:33.7]} 15. Nd5 {[%clk 0:02:52.1]}
15... Qg5+ {[%clk 0:01:51.3]} 16. f4 {[%clk 0:02:51.3]} 16... Qd8 {[%clk
0:01:51.7]} 17. Nxc7 {[%clk 0:02:51.1]} 17... Qxc7 {[%clk 0:01:51.9]} 18. Qxd6
{[%clk 0:02:51.2]} 18... Qc4 {[%clk 0:01:52.5]} 19. Kb1 {[%clk 0:02:39.4]} 19...
Rac8 {[%clk 0:01:49.2]} 20. Rd2 {[%clk 0:02:35.6]} 20... g6 {[%clk 0:01:42.8]}
21. Rhd1 {[%clk 0:02:33.5]} 21... Rc6 {[%clk 0:01:30.3]} 22. Qd4 {[%clk
0:02:32.5]} 22... Qb5 {[%clk 0:01:29.4]} 23. Qd5 {[%clk 0:02:26.4]} 23... Rc5
{[%clk 0:01:25]} 24. Qd3 {[%clk 0:02:24.9]} 24... Qb4 {[%clk 0:01:22.8]} 25. g3
{[%clk 0:02:23.6]} 25... Rfc8 {[%clk 0:01:22.1]} 26. c3 {[%clk 0:02:23.3]} 26...
Rxc3 {[%clk 0:01:16.2]} 27. Qd4 {[%clk 0:01:58.3]} 27... R3c4 {[%clk 0:01:14.2]}
28. Qf6 {[%clk 0:01:51.1]} 28... Re4 {[%clk 0:00:49.3]} 29. a3 {[%clk
0:01:40.4]} 29... Qc4 {[%clk 0:00:47.2]} 30. f5 {[%clk 0:01:03.4]} 30... Re2
{[%clk 0:00:23.9]} 31. Rxe2 {[%clk 0:00:39.6]} 31... Qxe2 {[%clk 0:00:23.9]} 32.
Rd8+ {[%clk 0:00:39.3]} 32... Rxd8 {[%clk 0:00:24.6]} 33. Qxd8+ {[%clk
0:00:40.1]} 33... Kg7 {[%clk 0:00:25.5]} 34. f6+ {[%clk 0:00:40]} 34... Kh6
{[%clk 0:00:26.2]} 35. Qd4 {[%clk 0:00:23.5]} 35... g5 {[%clk 0:00:16.5]} 36. h4
{[%clk 0:00:17.9]} 36... gxh4 {[%clk 0:00:13.2]} 37. Qxh4+ {[%clk 0:00:13.2]}
37... Kg6 {[%clk 0:00:13.4]} 38. Ka2 {[%clk 0:00:10.9]} 38... Qe6+ {[%clk
0:00:12.9]} 39. Ka1 {[%clk 0:00:09.6]} 39... Qxf6 {[%clk 0:00:12]} 40. Qe4+
{[%clk 0:00:08]} 40... Kg5 {[%clk 0:00:08.9]} 41. Qxb7 {[%clk 0:00:08.4]} 41...
Kg4 {[%clk 0:00:07.6]} 42. Qb4+ {[%clk 0:00:06]} 42... Kxg3 {[%clk 0:00:07.5]}
43. Qe1+ {[%clk 0:00:04.9]} 43... Qf2 {[%clk 0:00:05.1]} 44. Qe5+ {[%clk
0:00:05.4]} 44... Qf4 {[%clk 0:00:04.8]} 45. Qg7+ {[%clk 0:00:04.6]} 45... Kf2
{[%clk 0:00:04.1]} 46. Qxh7 {[%clk 0:00:04.5]} 46... f5 {[%clk 0:00:04.7]} 47.
Qa7+ {[%clk 0:00:03.5]} 47... Qe3 {[%clk 0:00:03.7]} 48. Qxa6 {[%clk 0:00:03.1]}
48... f4 {[%clk 0:00:04.2]} 49. b4 {[%clk 0:00:02]} 49... f3 {[%clk 0:00:04]}
50. b5 {[%clk 0:00:02.5]} 50... Kg2 {[%clk 0:00:03.5]} 51. Qg6+ {[%clk
0:00:02.4]} 51... Kf1 {[%clk 0:00:04.1]} 52. b6 {[%clk 0:00:02.3]} 52... Qc3+
{[%clk 0:00:04.5]} 53. Ka2 {[%clk 0:00:02.3]} 53... f2 {[%clk 0:00:05.2]} 54.
Qb1+ {[%clk 0:00:01.4]} 54... Ke2 {[%clk 0:00:05.8]} 55. b7 {[%clk 0:00:01.7]}
55... Qd2+ {[%clk 0:00:06]} 56. Qb2 {[%clk 0:00:01.2]} 56... Qxb2+ {[%clk
0:00:06.4]} 57. Kxb2 {[%clk 0:00:02.1]} 57... f1=Q {[%clk 0:00:06.7]} 58. b8=Q
{[%clk 0:00:03]} 58... Qf6+ {[%clk 0:00:07]} 59. Ka2 {[%clk 0:00:03]} 59... Qf7+
{[%clk 0:00:07.6]} 60. Qb3 {[%clk 0:00:03.2]} 60... Qa7 {[%clk 0:00:07.8]} 61.
Qc4+ {[%clk 0:00:02.8]} 61... Kd2 {[%clk 0:00:07.9]} 62. Kb3 {[%clk 0:00:03.7]}
62... Qe3+ {[%clk 0:00:06.8]} 63. Kb4 {[%clk 0:00:03.5]} 63... Qa7 {[%clk
0:00:07.3]} 64. Qb5 {[%clk 0:00:03.7]} 64... Kc2 {[%clk 0:00:07.2]} 65. Qc5+
{[%clk 0:00:03.4]} 65... Qxc5+ {[%clk 0:00:06.3]} 66. Kxc5 {[%clk 0:00:04.3]}
66... Kb3 {[%clk 0:00:07.2]} 1/2-1/2

[Event "*** Titled Tuesday Blitz"]
[Site "Chess.com"]
[Date "2021.02.16"]
[Round "9"]
[White "onnoelgersma"]
[Black "Iskusnyh"]
[Result "0-1"]
[WhiteElo "2449"]
[BlackElo "2604"]
[TimeControl "180+1"]
[EndTime "11:49:36 PST"]
[Termination "Iskusnyh won by resignation"]

1. e4 {[%clk 0:03:00.9]} 1... e6 {[%clk 0:02:58.6]} 2. Nf3 {[%clk 0:03:01.1]}
2... d5 {[%clk 0:02:58.6]} 3. Nc3 {[%clk 0:03:01.6]} 3... Nf6 {[%clk 0:02:57.5]}
4. Qe2 {[%clk 0:03:01.2]} 4... Be7 {[%clk 0:02:22.6]} 5. g3 {[%clk 0:02:58.8]}
5... O-O {[%clk 0:02:16.4]} 6. Bg2 {[%clk 0:02:59]} 6... c5 {[%clk 0:02:13]} 7.
O-O {[%clk 0:02:59.3]} 7... Nc6 {[%clk 0:02:12.2]} 8. d3 {[%clk 0:02:59.7]} 8...
b6 {[%clk 0:02:06.5]} 9. Rd1 {[%clk 0:02:37.2]} 9... Ba6 {[%clk 0:01:53.7]} 10.
e5 {[%clk 0:02:24]} 10... Nd7 {[%clk 0:01:50.9]} 11. Bf4 {[%clk 0:02:24.4]}
11... Nd4 {[%clk 0:01:40.9]} 12. Nxd4 {[%clk 0:02:14.4]} 12... cxd4 {[%clk
0:01:40.4]} 13. Nb1 {[%clk 0:02:15]} 13... Rc8 {[%clk 0:01:39.6]} 14. c3 {[%clk
0:02:09]} 14... dxc3 {[%clk 0:01:31.9]} 15. Nxc3 {[%clk 0:02:09.9]} 15... Nc5
{[%clk 0:01:19.9]} 16. Rac1 {[%clk 0:02:08.7]} 16... Qd7 {[%clk 0:01:13.7]} 17.
h4 {[%clk 0:02:07.1]} 17... Rc7 {[%clk 0:01:09.8]} 18. h5 {[%clk 0:02:05.7]}
18... Rfc8 {[%clk 0:01:08.6]} 19. h6 {[%clk 0:01:59.7]} 19... g6 {[%clk
0:01:06.9]} 20. Kh2 {[%clk 0:01:37]} 20... Qd8 {[%clk 0:01:06.2]} 21. Qf3 {[%clk
0:01:11.8]} 21... Bg5 {[%clk 0:01:04.1]} 22. d4 {[%clk 0:01:05.3]} 22... Bxf4
{[%clk 0:00:56.5]} 23. Qxf4 {[%clk 0:00:51.4]} 23... Nd3 {[%clk 0:00:55.4]} 24.
Rxd3 {[%clk 0:00:50.9]} 24... Bxd3 {[%clk 0:00:54.9]} 25. Re1 {[%clk 0:00:47.1]}
25... g5 {[%clk 0:00:49.3]} 26. Qd2 {[%clk 0:00:46.1]} 26... Bg6 {[%clk
0:00:48.7]} 27. Qe3 {[%clk 0:00:30.7]} 27... a6 {[%clk 0:00:47.2]} 28. a3 {[%clk
0:00:27]} 28... b5 {[%clk 0:00:47.1]} 29. Qd2 {[%clk 0:00:24.4]} 29... a5 {[%clk
0:00:46]} 30. Rf1 {[%clk 0:00:16.1]} 30... b4 {[%clk 0:00:44.2]} 31. axb4 {[%clk
0:00:17]} 31... axb4 {[%clk 0:00:44.6]} 32. Nd1 {[%clk 0:00:17.6]} 32... Rc2
{[%clk 0:00:44.7]} 33. Qxb4 {[%clk 0:00:17.6]} 33... Qf8 {[%clk 0:00:43.2]} 34.
Qb3 {[%clk 0:00:13.4]} 34... Qxh6+ {[%clk 0:00:42.5]} 35. Kg1 {[%clk 0:00:13.8]}
35... Qf8 {[%clk 0:00:37.7]} 36. Ne3 {[%clk 0:00:13.6]} 36... Rb8 {[%clk
0:00:30.3]} 37. Qa4 {[%clk 0:00:08.4]} 37... Rcxb2 {[%clk 0:00:28.3]} 38. Ng4
{[%clk 0:00:08.5]} 38... Rb1 {[%clk 0:00:27.5]} 39. Nf6+ {[%clk 0:00:08.6]}
39... Kh8 {[%clk 0:00:27.7]} 40. Qa5 {[%clk 0:00:08.8]} 40... Rxf1+ {[%clk
0:00:26.1]} 41. Bxf1 {[%clk 0:00:09]} 41... Rb1 {[%clk 0:00:25.9]} 42. Qd2
{[%clk 0:00:09.5]} 42... h6 {[%clk 0:00:23]} 43. f4 {[%clk 0:00:08.8]} 43... Qb4
{[%clk 0:00:22.4]} 44. Qh2 {[%clk 0:00:06.6]} 44... Kg7 {[%clk 0:00:19.4]} 45.
fxg5 {[%clk 0:00:05.9]} 45... hxg5 {[%clk 0:00:19.3]} 46. Qf2 {[%clk 0:00:05.8]}
46... Qe1 {[%clk 0:00:18.3]} 47. Qxe1 {[%clk 0:00:04.9]} 47... Rxe1 {[%clk
0:00:17.8]} 48. Kf2 {[%clk 0:00:05.8]} 48... Rd1 {[%clk 0:00:18.3]} 49. Ng4
{[%clk 0:00:04.3]} 49... Rxd4 {[%clk 0:00:17.8]} 50. Nf6 {[%clk 0:00:04.8]}
50... Rd2+ {[%clk 0:00:17.1]} 51. Ke3 {[%clk 0:00:04.8]} 51... Ra2 {[%clk
0:00:17.7]} 52. Be2 {[%clk 0:00:04.9]} 52... d4+ {[%clk 0:00:17.3]} 53. Kf3
{[%clk 0:00:05.3]} 53... d3 {[%clk 0:00:16.5]} 54. Bd1 {[%clk 0:00:04.8]} 54...
Ra1 {[%clk 0:00:16.8]} 55. Bb3 {[%clk 0:00:04]} 55... d2 {[%clk 0:00:16.5]} 56.
Ke2 {[%clk 0:00:04.1]} 56... Rb1 {[%clk 0:00:15.6]} 57. Ba4 {[%clk 0:00:03.8]}
57... Ra1 {[%clk 0:00:15.1]} 58. Bb3 {[%clk 0:00:03.9]} 58... Ra3 {[%clk
0:00:14.5]} 59. Bd1 {[%clk 0:00:03.8]} 59... Rxg3 {[%clk 0:00:14.1]} 60. Kxd2
{[%clk 0:00:03.8]} 60... Rg2+ {[%clk 0:00:13.9]} 61. Ke3 {[%clk 0:00:03.9]}
61... Rb2 {[%clk 0:00:13.6]} 62. Bf3 {[%clk 0:00:03.6]} 62... Rb3+ {[%clk
0:00:13.5]} 63. Kf2 {[%clk 0:00:03.5]} 63... Rb5 {[%clk 0:00:13]} 64. Ng4 {[%clk
0:00:03.6]} 64... Bf5 {[%clk 0:00:12.6]} 65. Nf6 {[%clk 0:00:02.8]} 65... Rxe5
{[%clk 0:00:12.5]} 66. Ne8+ {[%clk 0:00:03.1]} 66... Kf8 {[%clk 0:00:11.9]} 67.
Nd6 {[%clk 0:00:03.4]} 67... Ra5 {[%clk 0:00:11.7]} 68. Nb7 {[%clk 0:00:03.1]}
68... Ra2+ {[%clk 0:00:11.5]} 69. Kg3 {[%clk 0:00:03.5]} 69... Ra3 {[%clk
0:00:11.6]} 70. Nc5 {[%clk 0:00:03.8]} 70... g4 {[%clk 0:00:10.7]} 71. Nd7+
{[%clk 0:00:03.8]} 0-1

[Event "*** Titled Tuesday Blitz"]
[Site "Chess.com"]
[Date "2021.02.16"]
[Round "9"]
[White "lilleper1"]
[Black "swisspower96"]
[Result "0-1"]
[WhiteElo "2828"]
[BlackElo "2663"]
[TimeControl "180+1"]
[EndTime "11:49:38 PST"]
[Termination "swisspower96 won on time"]

1. e4 {[%clk 0:03:00.9]} 1... c5 {[%clk 0:02:57.8]} 2. c3 {[%clk 0:02:59.5]}
2... Nf6 {[%clk 0:02:57]} 3. e5 {[%clk 0:02:59.6]} 3... Nd5 {[%clk 0:02:57.5]}
4. Nf3 {[%clk 0:02:59.9]} 4... Nc6 {[%clk 0:02:57.4]} 5. Bc4 {[%clk 0:02:58.8]}
5... Nb6 {[%clk 0:02:57.5]} 6. Bb3 {[%clk 0:02:58.3]} 6... d5 {[%clk 0:02:54.9]}
7. exd6 {[%clk 0:02:56.5]} 7... Qxd6 {[%clk 0:02:54.9]} 8. O-O {[%clk
0:02:53.5]} 8... c4 {[%clk 0:02:52.3]} 9. Bc2 {[%clk 0:02:53.3]} 9... g6 {[%clk
0:02:52.9]} 10. b3 {[%clk 0:02:53.3]} 10... Be6 {[%clk 0:02:53.2]} 11. Na3
{[%clk 0:02:46.2]} 11... cxb3 {[%clk 0:02:49.2]} 12. axb3 {[%clk 0:02:44.6]}
12... Bg7 {[%clk 0:02:49.5]} 13. d4 {[%clk 0:02:39.5]} 13... Bd5 {[%clk
0:02:49.9]} 14. Bb2 {[%clk 0:02:34.8]} 14... O-O {[%clk 0:02:47.9]} 15. Re1
{[%clk 0:02:31.4]} 15... Rfd8 {[%clk 0:02:44.9]} 16. Qe2 {[%clk 0:02:28.5]}
16... Re8 {[%clk 0:02:38]} 17. Rad1 {[%clk 0:02:24.3]} 17... a6 {[%clk
0:02:34.7]} 18. Nc4 {[%clk 0:02:12.8]} 18... Qc7 {[%clk 0:02:30.9]} 19. Nce5
{[%clk 0:02:12]} 19... Rad8 {[%clk 0:02:28.7]} 20. c4 {[%clk 0:02:06.2]} 20...
Bxf3 {[%clk 0:02:11]} 21. Nxf3 {[%clk 0:02:06.3]} 21... e6 {[%clk 0:02:11.4]}
22. Be4 {[%clk 0:02:00.2]} 22... Ne7 {[%clk 0:02:07.3]} 23. h4 {[%clk
0:01:48.2]} 23... Nbc8 {[%clk 0:01:59.4]} 24. h5 {[%clk 0:01:45.1]} 24... Nd6
{[%clk 0:01:59.8]} 25. Bb1 {[%clk 0:01:45.3]} 25... Ndf5 {[%clk 0:01:54]} 26.
Qe4 {[%clk 0:01:41.1]} 26... gxh5 {[%clk 0:01:42.6]} 27. Bc1 {[%clk 0:01:31.3]}
27... Ng6 {[%clk 0:01:29.2]} 28. Bg5 {[%clk 0:01:13.8]} 28... Rc8 {[%clk
0:01:21.7]} 29. d5 {[%clk 0:01:10.8]} 29... b5 {[%clk 0:01:08.8]} 30. cxb5
{[%clk 0:00:55.7]} 30... Nd6 {[%clk 0:01:05.6]} 31. Qd3 {[%clk 0:00:47.6]} 31...
e5 {[%clk 0:00:55.5]} 32. Nh4 {[%clk 0:00:39.5]} 32... e4 {[%clk 0:00:51.5]} 33.
Qh3 {[%clk 0:00:37.4]} 33... axb5 {[%clk 0:00:38.1]} 34. Rc1 {[%clk 0:00:21.3]}
34... Qb7 {[%clk 0:00:36.1]} 35. Rxc8 {[%clk 0:00:20]} 35... Qxc8 {[%clk
0:00:32.7]} 36. Qh2 {[%clk 0:00:19]} 36... Be5 {[%clk 0:00:27.3]} 37. g3 {[%clk
0:00:16.5]} 37... Qg4 {[%clk 0:00:24.5]} 38. Ng2 {[%clk 0:00:15.5]} 38... Qxg5
{[%clk 0:00:24.1]} 39. Qh3 {[%clk 0:00:15.8]} 39... Qg4 {[%clk 0:00:24.2]} 40.
Qh2 {[%clk 0:00:16.3]} 40... Nf5 {[%clk 0:00:24.3]} 41. Rxe4 {[%clk 0:00:16.1]}
41... Qd1+ {[%clk 0:00:24.5]} 42. Re1 {[%clk 0:00:16.4]} 42... Qg4 {[%clk
0:00:19.6]} 43. Re4 {[%clk 0:00:16.6]} 43... Qg5 {[%clk 0:00:19.7]} 44. f4
{[%clk 0:00:16.7]} 44... Qxg3 {[%clk 0:00:19.6]} 45. fxe5 {[%clk 0:00:15.7]}
45... Qxb3 {[%clk 0:00:18.2]} 46. Re1 {[%clk 0:00:14.9]} 46... Ng3 {[%clk
0:00:12.7]} 47. Bxg6 {[%clk 0:00:14.7]} 47... hxg6 {[%clk 0:00:12.5]} 48. e6
{[%clk 0:00:13.1]} 48... f5 {[%clk 0:00:05.5]} 49. Nf4 {[%clk 0:00:11.3]} 49...
Qf3 {[%clk 0:00:05.4]} 50. Nxg6 {[%clk 0:00:07.6]} 50... f4 {[%clk 0:00:05.9]}
51. Qg2 {[%clk 0:00:07.6]} 51... Qg4 {[%clk 0:00:06]} 52. Ne5 {[%clk 0:00:06.3]}
52... Qg5 {[%clk 0:00:05.8]} 53. Nf3 {[%clk 0:00:06.6]} 53... Qxd5 {[%clk
0:00:06.1]} 54. e7 {[%clk 0:00:05.3]} 54... Qf7 {[%clk 0:00:05.9]} 55. Qc2
{[%clk 0:00:03.3]} 55... Rxe7 {[%clk 0:00:05.1]} 56. Rxe7 {[%clk 0:00:01.9]}
56... Qxe7 {[%clk 0:00:05.6]} 57. Qg6+ {[%clk 0:00:02.8]} 57... Kf8 {[%clk
0:00:06.2]} 58. Qh6+ {[%clk 0:00:03]} 58... Ke8 {[%clk 0:00:05.8]} 59. Qh8+
{[%clk 0:00:03.4]} 59... Kd7 {[%clk 0:00:06.1]} 60. Qd4+ {[%clk 0:00:04]} 60...
Qd6 {[%clk 0:00:06.7]} 61. Qg7+ {[%clk 0:00:03.7]} 61... Kc6 {[%clk 0:00:06.8]}
62. Qc3+ {[%clk 0:00:04.3]} 62... Kb6 {[%clk 0:00:07.2]} 63. Kg2 {[%clk
0:00:03.4]} 63... Ne4 {[%clk 0:00:06.5]} 64. Qe1 {[%clk 0:00:03.2]} 64... Qg6+
{[%clk 0:00:06.4]} 65. Kf1 {[%clk 0:00:03]} 65... Nc5 {[%clk 0:00:06.2]} 66. Qe7
{[%clk 0:00:02.6]} 66... Qd3+ {[%clk 0:00:06.5]} 67. Kf2 {[%clk 0:00:02.7]}
67... Ne4+ {[%clk 0:00:06.8]} 68. Kg2 {[%clk 0:00:01.7]} 68... Qe2+ {[%clk
0:00:07.4]} 0-1

[Event "*** Titled Tuesday Blitz"]
[Site "Chess.com"]
[Date "2021.02.16"]
[Round "9"]
[White "ErikRonka"]
[Black "mikolka1985"]
[Result "1/2-1/2"]
[WhiteElo "2498"]
[BlackElo "2616"]
[TimeControl "180+1"]
[EndTime "11:49:50 PST"]
[Termination "Game drawn by repetition"]

1. e4 {[%clk 0:03:00.9]} 1... e5 {[%clk 0:02:57.6]} 2. Nc3 {[%clk 0:02:41.6]}
2... Nf6 {[%clk 0:02:56.2]} 3. Bc4 {[%clk 0:02:39.5]} 3... Nc6 {[%clk
0:02:55.5]} 4. d3 {[%clk 0:02:39.3]} 4... Na5 {[%clk 0:02:55.1]} 5. Bb3 {[%clk
0:02:39]} 5... Bc5 {[%clk 0:02:49.6]} 6. f4 {[%clk 0:02:33.1]} 6... d6 {[%clk
0:02:45]} 7. Nf3 {[%clk 0:02:32.9]} 7... Nxb3 {[%clk 0:02:34.6]} 8. axb3 {[%clk
0:02:29.6]} 8... O-O {[%clk 0:02:31.6]} 9. Na4 {[%clk 0:02:27.8]} 9... Bb4+
{[%clk 0:01:50.7]} 10. c3 {[%clk 0:02:25.3]} 10... Ba5 {[%clk 0:01:50.4]} 11. b4
{[%clk 0:02:21.6]} 11... Bb6 {[%clk 0:01:50.2]} 12. Nxb6 {[%clk 0:02:21.4]}
12... cxb6 {[%clk 0:01:50]} 13. fxe5 {[%clk 0:01:47.8]} 13... dxe5 {[%clk
0:01:48.6]} 14. Nxe5 {[%clk 0:01:42.5]} 14... Re8 {[%clk 0:01:47.5]} 15. Nf3
{[%clk 0:01:24.7]} 15... Bg4 {[%clk 0:01:38.3]} 16. O-O {[%clk 0:01:20.5]} 16...
Qc7 {[%clk 0:01:31.9]} 17. Qc2 {[%clk 0:01:02.7]} 17... h6 {[%clk 0:01:29.8]}
18. Nd4 {[%clk 0:00:59.4]} 18... Nh7 {[%clk 0:01:24.3]} 19. Bf4 {[%clk
0:00:58.8]} 19... Qd7 {[%clk 0:01:20.7]} 20. Qf2 {[%clk 0:00:58.9]} 20... Nf8
{[%clk 0:01:18.5]} 21. h3 {[%clk 0:00:58.5]} 21... Bh5 {[%clk 0:01:18]} 22. Qg3
{[%clk 0:00:45.1]} 22... Bg6 {[%clk 0:01:17.3]} 23. Rad1 {[%clk 0:00:40.9]}
23... a5 {[%clk 0:01:16.5]} 24. bxa5 {[%clk 0:00:40.5]} 24... Rxa5 {[%clk
0:01:14.7]} 25. Nf3 {[%clk 0:00:37.4]} 25... Ra2 {[%clk 0:01:13.8]} 26. Rd2
{[%clk 0:00:35.9]} 26... Rea8 {[%clk 0:01:11.8]} 27. Ne5 {[%clk 0:00:35.2]}
27... Qb5 {[%clk 0:01:08.5]} 28. Qf2 {[%clk 0:00:20.6]} 28... Ra1 {[%clk
0:01:03.6]} 29. Rxa1 {[%clk 0:00:18.5]} 29... Rxa1+ {[%clk 0:01:02.5]} 30. Kh2
{[%clk 0:00:19.4]} 30... f6 {[%clk 0:01:00.8]} 31. Nxg6 {[%clk 0:00:18.6]} 31...
Nxg6 {[%clk 0:01:00.6]} 32. Bg3 {[%clk 0:00:19]} 32... Rb1 {[%clk 0:00:56.8]}
33. c4 {[%clk 0:00:13.5]} 33... Qa4 {[%clk 0:00:53.8]} 34. Qxb6 {[%clk
0:00:12.2]} 34... Qa1 {[%clk 0:00:52.2]} 35. Qd8+ {[%clk 0:00:09.6]} 35... Kh7
{[%clk 0:00:51.6]} 36. Bd6 {[%clk 0:00:09.3]} 36... Rh1+ {[%clk 0:00:50.2]} 37.
Kg3 {[%clk 0:00:09.1]} 37... Qe1+ {[%clk 0:00:49.6]} 38. Rf2 {[%clk 0:00:09.2]}
38... Qe3+ {[%clk 0:00:44.7]} 39. Rf3 {[%clk 0:00:08.9]} 39... Qe1+ {[%clk
0:00:44.4]} 40. Rf2 {[%clk 0:00:08.4]} 40... h5 {[%clk 0:00:43]} 41. Bc5 {[%clk
0:00:07.1]} 41... h4+ {[%clk 0:00:37.4]} 42. Kg4 {[%clk 0:00:07.8]} 42... Qd1+
{[%clk 0:00:37.3]} 43. Kf5 {[%clk 0:00:07.9]} 43... Qh5+ {[%clk 0:00:35.9]} 44.
Ke6 {[%clk 0:00:08.1]} 44... Rd1 {[%clk 0:00:32.4]} 45. d4 {[%clk 0:00:07.3]}
45... Ne5 {[%clk 0:00:30]} 46. Qe7 {[%clk 0:00:02.6]} 46... Nxc4 {[%clk
0:00:22.5]} 47. Qf7 {[%clk 0:00:02.4]} 47... Qxf7+ {[%clk 0:00:20.7]} 48. Kxf7
{[%clk 0:00:02.5]} 48... b6 {[%clk 0:00:20.3]} 49. b3 {[%clk 0:00:02.6]} 49...
bxc5 {[%clk 0:00:19]} 50. bxc4 {[%clk 0:00:03.5]} 50... Rxd4 {[%clk 0:00:18.9]}
51. Re2 {[%clk 0:00:02.6]} 51... Rxc4 {[%clk 0:00:18.5]} 52. e5 {[%clk
0:00:03.5]} 52... fxe5 {[%clk 0:00:17.9]} 53. Rxe5 {[%clk 0:00:04.4]} 53... Rf4+
{[%clk 0:00:14.3]} 54. Ke6 {[%clk 0:00:03.9]} 54... c4 {[%clk 0:00:14.2]} 55.
Rh5+ {[%clk 0:00:03.4]} 55... Kg6 {[%clk 0:00:13.2]} 56. Rc5 {[%clk 0:00:04.3]}
56... Kh6 {[%clk 0:00:12.2]} 57. Ke5 {[%clk 0:00:04.3]} 57... g5 {[%clk
0:00:12.1]} 58. Rc6+ {[%clk 0:00:03]} 58... Kg7 {[%clk 0:00:11.8]} 59. Kd5
{[%clk 0:00:03.5]} 59... Kf7 {[%clk 0:00:09.5]} 60. Rxc4 {[%clk 0:00:03.5]}
60... Rf2 {[%clk 0:00:08.7]} 61. Rg4 {[%clk 0:00:03.2]} 61... Kf6 {[%clk
0:00:09]} 62. Ke4 {[%clk 0:00:03.3]} 62... Kg6 {[%clk 0:00:08.7]} 63. Ke3 {[%clk
0:00:03.5]} 63... Ra2 {[%clk 0:00:08.3]} 64. g3 {[%clk 0:00:03.8]} 64... Ra3+
{[%clk 0:00:07.4]} 65. Kf2 {[%clk 0:00:03.6]} 65... Ra2+ {[%clk 0:00:08]} 66.
Kf3 {[%clk 0:00:03.8]} 66... Ra3+ {[%clk 0:00:07.5]} 67. Kf2 {[%clk 0:00:03.9]}
67... hxg3+ {[%clk 0:00:07.2]} 68. Rxg3 {[%clk 0:00:04.4]} 68... Ra2+ {[%clk
0:00:08.1]} 69. Kf3 {[%clk 0:00:04.6]} 69... Kf5 {[%clk 0:00:08.6]} 70. Rg4
{[%clk 0:00:03.9]} 70... Ra3+ {[%clk 0:00:08.9]} 71. Kg2 {[%clk 0:00:04.1]}
71... Ra2+ {[%clk 0:00:09.7]} 72. Kg3 {[%clk 0:00:04]} 72... Rb2 {[%clk
0:00:10.1]} 73. Rc4 {[%clk 0:00:03.4]} 73... Rb3+ {[%clk 0:00:09.8]} 74. Kg2
{[%clk 0:00:03.7]} 74... Rb2+ {[%clk 0:00:10.1]} 75. Kg3 {[%clk 0:00:03.7]}
75... Rb3+ {[%clk 0:00:10.5]} 76. Kg2 {[%clk 0:00:04]} 76... Rb2+ {[%clk
0:00:10.9]} 77. Kg3 {[%clk 0:00:03.9]} 1/2-1/2